fUST/lending_fUST_20251007
["ID","MTS","AMOUNT","RATE_DAILY","PERIOD"]
[389648178,1759767048052,-500.0,0.0002,2]
[389648179,1759767048062,-500.0,0.0002,2]
[389648180,1759767048074,-151.0,0.0002,2]
[389648181,1759767048084,-500.0,0.0002,2]
[389648182,1759767048094,-500.0,0.0002,2]
[389648183,1759767048106,-500.0,0.0002,2]
[389648184,1759767048117,-500.0,0.0002,2]
[389648185,1759767048129,-500.0,0.0002,2]
[389648187,1759767048138,-500.0,0.0002,2]
[389648188,1759767048148,-500.0,0.0002,2]
[389648189,1759767048157,-151.0,0.0002,2]
[389648190,1759767048167,-151.0,0.0002,2]
[389648191,1759767048176,-151.0,0.0002,2]
[389648192,1759767048186,-151.0,0.0002,2]
[389648193,1759767048196,-151.0,0.0002,2]
[389648194,1759767048205,-500.0,0.0002,2]
[389648195,1759767048214,-151.0,0.0002,2]
[389648197,1759767048224,-151.0,0.0002,2]
[389648198,1759767048234,-151.0,0.0002,2]
[389648199,1759767048244,-151.0,0.0002,2]
[389648200,1759767048253,-1059.46,0.0002,2]
[389648201,1759767048263,-493.24,0.0002,2]
[389648202,1759767048273,-500.0,0.0002,2]
[389648203,1759767048284,-500.0,0.0002,2]
[389648205,1759767048294,-643.29753498,0.0002,2]
[389648206,1759767048303,-151.0,0.0002,2]
[389648207,1759767048313,-151.0,0.0002,2]
[389648208,1759767048323,-500.0,0.0002,2]
[389648209,1759767048332,-151.0,0.0002,2]
[389648210,1759767048342,-500.0,0.0002,2]
[389648211,1759767048351,-500.0,0.0002,2]
[389648212,1759767048361,-1068.08,0.0002,2]
[389648214,1759767048371,-500.0,0.0002,2]
[389648215,1759767048380,-500.0,0.0002,2]
[389648216,1759767048389,-500.0,0.0002,2]
[389648217,1759767048398,-500.0,0.0002,2]
[389648218,1759767048407,-500.0,0.0002,2]
[389648219,1759767048417,-564.81,0.0002,2]
[389648220,1759767048427,-500.0,0.0002,2]
[389648221,1759767048436,-500.0,0.0002,2]
[389648222,1759767048446,-500.0,0.0002,2]
[389648224,1759767048455,-1075.47,0.0002,2]
[389648225,1759767048466,-500.0,0.0002,2]
[389648226,1759767048475,-429.78,0.0002,2]
[389648227,1759767048485,-500.0,0.0002,2]
[389648228,1759767048495,-500.0,0.0002,2]
[389648229,1759767048505,-219.33,0.0002,2]
[389648230,1759767048514,-500.0,0.0002,2]
[389648232,1759767048523,-500.0,0.0002,2]
[389648233,1759767048532,-151.0,0.0002,2]
[389648234,1759767048542,-151.0,0.0002,2]
[389648235,1759767048552,-500.0,0.0002,2]
[389648236,1759767048562,-500.0,0.0002,2]
[389648237,1759767048572,-1132.92,0.0002,2]
[389648238,1759767048582,-500.0,0.0002,2]
[389648239,1759767048592,-469.2,0.0002,2]
[389648241,1759767048602,-151.0,0.0002,2]
[389648242,1759767048611,-500.0,0.0002,2]
[389648243,1759767048621,-500.0,0.0002,2]
[389648244,1759767048631,-500.0,0.0002,2]
[389648245,1759767048640,-500.0,0.0002,2]
[389648246,1759767048650,-151.0,0.0002,2]
[389648247,1759767048660,-500.0,0.0002,2]
[389648248,1759767048669,-1188.26,0.0002,2]
[389648249,1759767048679,-500.0,0.0002,2]
[389648251,1759767048689,-1645.21316,0.0002,2]
[389648252,1759767048699,-874.79,0.0002,2]
[389648253,1759767048708,-1645.21316,0.0002,2]
[389648254,1759767048719,-500.0,0.0002,2]
[389648255,1759767048728,-1645.21316,0.0002,2]
[389648256,1759767048738,-1645.21316,0.0002,2]
[389648257,1759767048747,-500.0,0.0002,2]
[389648258,1759767048757,-500.0,0.0002,2]
[389648260,1759767048767,-1743.05,0.0002,2]
[389648261,1759767048776,-590.46,0.0002,2]
[389648262,1759767048786,-151.0,0.0002,2]
[389648263,1759767048796,-1342.72,0.0002,2]
[389648264,1759767048805,-500.0,0.0002,2]
[389648265,1759767048815,-151.0,0.0002,2]
[389648266,1759767048826,-1770.57,0.0002,2]
[389648267,1759767048836,-151.0,0.0002,2]
[389648269,1759767048846,-6976.32,0.0002,2]
[389648270,1759767048855,-2058.06273,0.0002,2]
[389648271,1759767048865,-151.0,0.0002,2]
[389648272,1759767048874,-2058.06273,0.0002,2]
[389648273,1759767048884,-2058.06273,0.0002,2]
[389648274,1759767048894,-151.0,0.0002,2]
[389648275,1759767048904,-801.38,0.0002,2]
[389648277,1759767048913,-2058.06273,0.0002,2]
[389648278,1759767048923,-151.0,0.0002,2]
[389648279,1759767048933,-151.0,0.0002,2]
[389648280,1759767048943,-277.849468,0.0002,2]
[389648282,1759767048952,-3293.15,0.0002,2]
[389648284,1759767048962,-520.52,0.0002,2]
[389648286,1759767048972,-566.39,0.0002,2]
[389648288,1759767048982,-500.0,0.0002,2]
[389648291,1759767048992,-1020.43,0.0002,2]
[389648293,1759767049002,-151.0,0.0002,2]
[389648294,1759767049011,-151.0,0.0002,2]
[389648295,1759767049021,-151.0,0.0002,2]
[389648296,1759767049033,-534.37,0.0002,2]
[389648297,1759767049043,-218.34,0.0002,2]
[389648298,1759767049053,-612.54,0.0002,2]
[389648299,1759767049064,-500.0,0.0002,2]
[389648301,1759767049076,-665.81,0.0002,2]
[389648302,1759767049087,-500.0,0.0002,2]
[389648303,1759767049097,-4890.47,0.0002,2]
[389648304,1759767049109,-151.0,0.0002,2]
[389648305,1759767049118,-151.0,0.0002,2]
[389648306,1759767049128,-988.39,0.0002,2]
[389648307,1759767049138,-3211.78,0.0002,2]
[389648308,1759767049147,-151.0,0.0002,2]
[389648310,1759767049157,-500.0,0.0002,2]
[389648311,1759767049166,-151.0,0.0002,2]
[389648312,1759767049176,-500.0,0.0002,2]
[389648313,1759767049186,-500.0,0.0002,2]
[389648314,1759767049196,-238.740413,0.0002,2]
[389648315,1759767049206,-504.68,0.0002,2]
[389648316,1759767049216,-281.317403,0.0002,2]
[389648317,1759767049226,-1164.13,0.0002,2]
[389648318,1759767049236,-151.0,0.0002,2]
[389648320,1759767049245,-281.317403,0.0002,2]
[389648321,1759767049255,-1461.14,0.0002,2]
[389648322,1759767049265,-614.43,0.0002,2]
[389648323,1759767049274,-281.317403,0.0002,2]
[389648324,1759767049285,-151.0,0.0002,2]
[389648325,1759767049295,-281.317403,0.0002,2]
[389648326,1759767049304,-151.0,0.0002,2]
[389648327,1759767049313,-151.0,0.0002,2]
[389648329,1759767049324,-151.0,0.0002,2]
[389648330,1759767049334,-500.0,0.0002,2]
[389648331,1759767049344,-873.82,0.0002,2]
[389648332,1759767049355,-500.0,0.0002,2]
[389648333,1759767049365,-243.823277,0.0002,2]
[389648334,1759767049375,-243.823277,0.0002,2]
[389648335,1759767049384,-1756.41,0.0002,2]
[389648336,1759767049394,-243.823277,0.0002,2]
[389648338,1759767049403,-548.11,0.0002,2]
[389648339,1759767049413,-500.0,0.0002,2]
[389648340,1759767049423,-243.823277,0.0002,2]
[389648341,1759767049435,-741.0,0.0002,2]
[389648342,1759767049446,-500.0,0.0002,2]
[389648343,1759767049458,-1292.37,0.0002,2]
[389648344,1759767049468,-1057.32,0.0002,2]
[389648345,1759767049478,-151.0,0.0002,2]
[389648347,1759767049487,-1192.5,0.0002,2]
[389648348,1759767049498,-500.0,0.0002,2]
[389648349,1759767049510,-2502.01,0.0002,2]
[389648350,1759767049522,-500.0,0.0002,2]
[389648351,1759767049533,-735.61,0.0002,2]
[389648352,1759767049545,-500.0,0.0002,2]
[389648353,1759767049555,-889.67,0.0002,2]
[389648355,1759767049567,-500.0,0.0002,2]
[389648356,1759767049577,-197.296677,0.0002,2]
[389648357,1759767049591,-151.0,0.0002,2]
[389648358,1759767049603,-4247.91,0.0002,2]
[389648359,1759767049616,-469.40032285,0.0002,2]
[389648360,1759767049629,-1077.11,0.0002,2]
[389648361,1759767049639,-8783.98961935,0.0002,2]
[389648366,1759767049958,-1243.15038065,0.0002,2]
[389648367,1759767049969,-500.0,0.0002,2]
[389648368,1759767049981,-3687.49,0.0002,2]
[389648369,1759767049993,-151.0,0.0002,2]
[389648370,1759767050003,-151.0,0.0002,2]
[389648371,1759767050013,-500.0,0.0002,2]
[389648373,1759767050023,-151.0,0.0002,2]
[389648374,1759767050036,-151.0,0.0002,2]
[389648375,1759767050045,-470.54,0.0002,2]
[389648376,1759767050055,-228.346032,0.0002,2]
[389648377,1759767050064,-743.19,0.0002,2]
[389648378,1759767050075,-500.0,0.0002,2]
[389648379,1759767050085,-228.346032,0.0002,2]
[389648380,1759767050095,-1944.29,0.0002,2]
[389648381,1759767050105,-559.02,0.0002,2]
[389648382,1759767050117,-196.609406,0.0002,2]
[389648384,1759767050126,-228.346032,0.0002,2]
[389648385,1759767050135,-356.544805,0.0002,2]
[389648386,1759767050145,-228.346032,0.0002,2]
[389648387,1759767050154,-196.609406,0.0002,2]
[389648388,1759767050163,-500.0,0.0002,2]
[389648389,1759767050173,-356.544805,0.0002,2]
[389648390,1759767050182,-196.609406,0.0002,2]
[389648391,1759767050192,-356.544805,0.0002,2]
[389648393,1759767050202,-196.609406,0.0002,2]
[389648394,1759767050212,-697.83,0.0002,2]
[389648395,1759767050221,-356.544805,0.0002,2]
[389648396,1759767050231,-500.0,0.0002,2]
[389648397,1759767050240,-151.0,0.0002,2]
[389648398,1759767050249,-500.0,0.0002,2]
[389648399,1759767050259,-580.0,0.0002,2]
[389648400,1759767050268,-500.0,0.0002,2]
[389648402,1759767050277,-619.74,0.0002,2]
[389648403,1759767050286,-500.0,0.0002,2]
[389648404,1759767050297,-500.0,0.0002,2]
[389648405,1759767050306,-500.0,0.0002,2]
[389648406,1759767050315,-860.18,0.0002,2]
[389648407,1759767050327,-500.0,0.0002,2]
[389648408,1759767050336,-1000.0,0.0002,4]
[389648409,1759767050346,-500.0,0.0002,2]
[389648411,1759767050355,-1426.97,0.0002,2]
[389648412,1759767050365,-660.26,0.0002,2]
[389648413,1759767050375,-1691.79,0.0002,2]
[389648414,1759767050384,-151.0,0.0002,2]
[389648415,1759767050393,-151.0,0.0002,2]
[389648416,1759767050403,-151.0,0.0002,2]
[389648417,1759767050412,-254.01148,0.0002,2]
[389648419,1759767050421,-551.82,0.0002,2]
[389648420,1759767050431,-500.0,0.0002,2]
[389648421,1759767050440,-1454.51,0.0002,2]
[389648422,1759767050449,-10078.61,0.0002,2]
[389648423,1759767050459,-500.0,0.0002,2]
[389648424,1759767050468,-151.0,0.0002,2]
[389648425,1759767050477,-500.0,0.0002,2]
[389648426,1759767050486,-151.0,0.0002,2]
[389648428,1759767050496,-413.87971,0.0002,2]
[389648429,1759767050506,-6117.42,0.0002,2]
[389648430,1759767050515,-500.0,0.0002,2]
[389648431,1759767050525,-413.87971,0.0002,2]
[389648432,1759767050535,-151.0,0.0002,2]
[389648433,1759767050545,-413.87971,0.0002,2]
[389648434,1759767050554,-2736.04,0.0002,2]
[389648435,1759767050564,-500.0,0.0002,2]
[389648437,1759767050574,-413.87971,0.0002,2]
[389648438,1759767050584,-500.0,0.00020021,2]
[389648439,1759767050593,-1000.0,0.00020021,2]
[389648440,1759767050603,-250.14533248,0.00020021,2]
[389648441,1759767050612,-509.87836425,0.00020021,2]
[389648442,1759767050622,-1000.0,0.00020021,2]
[389648443,1759767050631,-1000.0,0.00020021,2]
[389648445,1759767050640,-1000.0,0.00020021,2]
[389648446,1759767050650,-500.0,0.00020147,2]
[389648447,1759767050659,-500.0,0.00020147,2]
[389648448,1759767050668,-300.0,0.00020242,2]
[389648449,1759767050677,-500.0,0.00020242,2]
[389648450,1759767050686,-16.51091351,0.00020242,2]
[389648451,1759767050699,-483.48908649,0.00020242,2]
[389648453,1759767050708,-524.52447964,0.00020271,2]
[389648454,1759767050717,-500.0,0.00020273,2]
[389648455,1759767050726,-500.0,0.00020273,2]
[389648456,1759767050736,-500.0,0.00020273,2]
[389648457,1759767050745,-500.0,0.00020273,2]
[389648458,1759767050754,-1626.0581626,0.00020273,2]
[389648459,1759767050764,-325.68824156,0.00020273,2]
[389648460,1759767050773,-539.31,0.00020273,2]
[389648462,1759767050783,-500.0,0.00020273,2]
[389648463,1759767050792,-500.0,0.00020273,2]
[389648464,1759767050802,-660.28,0.00020273,2]
[389648465,1759767050812,-500.0,0.00020273,2]
[389648466,1759767050822,-159.74535921,0.00020273,2]
[389648467,1759767050832,-500.0,0.00020273,2]
[389648468,1759767050841,-500.0,0.00020273,2]
[389648470,1759767050850,-151.0,0.00020273,2]
[389648471,1759767050859,-151.0,0.00020273,2]
[389648472,1759767050869,-195.5,0.00020273,2]
[389648473,1759767050879,-151.0,0.00020273,2]
[389648474,1759767050888,-500.0,0.00020273,2]
[389648475,1759767050897,-267.7908391,0.00020273,2]
[389648476,1759767050910,-448.1591609,0.00020273,2]
[389648478,1759767050919,-19.05686541,0.00020273,2]
[389648481,1759767051064,-216.65313459,0.00020273,2]
[389648482,1759767051076,-151.0,0.00020273,2]
[389648483,1759767051085,-500.0,0.00020273,2]
[389648484,1759767051095,-151.0,0.00020273,2]
[389648485,1759767051105,-500.0,0.00020273,2]
[389648486,1759767051115,-500.0,0.00020273,2]
[389648487,1759767051125,-247.63,0.00020273,2]
[389648489,1759767051134,-500.0,0.00020273,2]
[389648490,1759767051143,-500.0,0.00020273,2]
[389648491,1759767051153,-1298.82,0.00020273,2]
[389648492,1759767051162,-151.0,0.00020273,2]
[389648493,1759767051172,-1584.28,0.00020273,2]
[389648494,1759767051181,-151.0,0.00020273,2]
[389648495,1759767051191,-151.0,0.00020273,2]
[389648496,1759767051200,-151.0,0.00020273,2]
[389648498,1759767051209,-500.0,0.00020273,2]
[389648499,1759767051218,-500.0,0.00020273,2]
[389648500,1759767051227,-500.0,0.00020273,2]
[389648501,1759767051238,-500.0,0.00020273,2]
[389648502,1759767051247,-186.67285436,0.00020273,2]
[389648503,1759767051257,-500.0,0.00020273,2]
[389648504,1759767051266,-500.0,0.00020273,2]
[389648505,1759767051275,-500.0,0.00020273,2]
[389648507,1759767051285,-500.0,0.00020273,2]
[389648508,1759767051293,-151.0,0.00020273,2]
[389648509,1759767051303,-500.0,0.00020273,2]
[389648510,1759767051312,-151.0,0.00020273,2]
[389648511,1759767051324,-500.0,0.00020273,2]
[389648512,1759767051334,-500.0,0.00020273,2]
[389648513,1759767051344,-503.53,0.00020273,2]
[389648514,1759767051354,-1201.45,0.00020273,2]
[389648516,1759767051364,-500.0,0.00020273,2]
[389648517,1759767051374,-500.0,0.00020273,2]
[389648518,1759767051383,-500.0,0.00020273,2]
[389648519,1759767051394,-605.65158718,0.00020273,2]
[389648520,1759767051403,-500.0,0.00020273,2]
[389648521,1759767051412,-237.61,0.00020273,2]
[389648522,1759767051421,-500.0,0.00020273,2]
[389648523,1759767051430,-500.0,0.00020273,2]
[389648524,1759767051439,-500.0,0.00020273,2]
[389648526,1759767051449,-151.0,0.00020273,2]
[389648527,1759767051458,-151.0,0.00020273,2]
[389648528,1759767051467,-151.0,0.00020273,2]
[389648529,1759767051476,-172.979836,0.00020273,2]
[389648530,1759767051485,-500.0,0.00020273,2]
[389648531,1759767051494,-249.550516,0.00020273,2]
[389648532,1759767051503,-151.0,0.00020273,2]
[389648533,1759767051512,-151.0,0.00020273,2]
[389648534,1759767051522,-1059.46,0.00020273,2]
[389648535,1759767051531,-151.0,0.00020273,2]
[389648537,1759767051540,-151.0,0.00020273,2]
[389648538,1759767051550,-151.0,0.00020273,2]
[389648539,1759767051560,-360.02,0.00020273,2]
[389648540,1759767051571,-558.7475,0.00020273,2]
[389648541,1759767051580,-1068.08,0.00020273,2]
[389648542,1759767051590,-151.0,0.00020273,2]
[389648543,1759767051600,-151.0,0.00020273,2]
[389648544,1759767051609,-151.0,0.00020273,2]
[389648546,1759767051619,-2540.4437797,0.00020273,2]
[389648547,1759767051629,-218.84536,0.00020273,2]
[389648548,1759767051638,-151.0,0.00020273,2]
[389648549,1759767051648,-151.0,0.00020273,2]
[389648550,1759767051659,-500.0,0.00020273,2]
[389648551,1759767051668,-396.605245,0.00020273,2]
[389648552,1759767051677,-396.605245,0.00020273,2]
[389648553,1759767051686,-396.605245,0.00020273,2]
[389648555,1759767051696,-396.605245,0.00020273,2]
[389648556,1759767051705,-500.0,0.00020273,2]
[389648557,1759767051715,-330.59274947,0.00020273,2]
[389648558,1759767051724,-151.0,0.00020273,2]
[389648559,1759767051733,-500.0,0.00020273,2]
[389648560,1759767051743,-564.81,0.00020273,2]
[389648561,1759767051752,-500.0,0.00020273,2]
[389648563,1759767051761,-645.13,0.00020273,2]
[389648564,1759767051770,-151.0,0.00020273,2]
[389648565,1759767051779,-203.408138,0.00020273,2]
[389648566,1759767051789,-203.408138,0.00020273,2]
[389648567,1759767051798,-203.408138,0.00020273,2]
[389648568,1759767051808,-203.408138,0.00020273,2]
[389648569,1759767051817,-500.0,0.00020273,2]
[389648570,1759767051828,-151.0,0.00020273,2]
[389648572,1759767051837,-1075.47,0.00020273,2]
[389648573,1759767051847,-151.0,0.00020273,2]
[389648574,1759767051856,-500.0,0.00020273,2]
[389648575,1759767051866,-151.0,0.00020273,2]
[389648576,1759767051875,-151.0,0.00020273,2]
[389648577,1759767051884,-573.21,0.00020273,2]
[389648578,1759767051894,-299.127862,0.00020273,2]
[389648579,1759767051904,-500.0,0.00020273,2]
[389648581,1759767051913,-500.0,0.00020273,2]
[389648582,1759767051922,-500.0,0.00020273,2]
[389648583,1759767051931,-151.0,0.00020273,2]
[389648584,1759767051941,-500.0,0.00020273,2]
[389648585,1759767051951,-500.0,0.00020273,2]
[389648586,1759767051960,-1132.92,0.00020273,2]
[389648587,1759767051970,-151.0,0.00020273,2]
[389648588,1759767051981,-500.0,0.00020273,2]
[389648590,1759767051990,-500.0,0.00020273,2]
[389648591,1759767051999,-500.0,0.00020273,2]
[389648592,1759767052008,-385.8,0.00020273,2]
[389648593,1759767052018,-217.927928,0.00020273,2]
[389648594,1759767052029,-500.0,0.00020273,2]
[389648595,1759767052041,-1188.26,0.00020273,2]
[389648596,1759767052050,-500.0,0.00020273,2]
[389648598,1759767052059,-1645.21316,0.00020273,2]
[389648599,1759767052068,-869.83066136,0.00020273,2]
[389648600,1759767052083,-4.95933864,0.00020273,2]
[389648601,1759767052093,-1645.21316,0.00020273,2]
[389648602,1759767052103,-500.0,0.00020273,2]
[389648603,1759767052113,-772.1505205,0.00020273,2]
[389648631,1759767054141,-2476.96354199,0.00019077,2]
[389648632,1759767054151,-500.0,0.00019178,2]
[389648633,1759767054161,-500.0,0.00019178,2]
[389648634,1759767054170,-500.0,0.00019452,2]
[389648635,1759767054180,-293.61728183,0.00019687,2]
[389648636,1759767054190,-873.0626395,0.00020273,2]
[389648637,1759767054200,-1645.21316,0.00020273,2]
[389648638,1759767054209,-1743.05,0.00020273,2]
[389648639,1759767054219,-590.46,0.00020273,2]
[389648641,1759767054228,-1342.72,0.00020273,2]
[389648642,1759767054238,-500.0,0.00020273,2]
[389648643,1759767054248,-151.0,0.00020273,2]
[389648644,1759767054257,-151.0,0.00020273,2]
[389648645,1759767054267,-2058.06273,0.00020273,2]
[389648646,1759767054276,-151.0,0.00020273,2]
[389648647,1759767054286,-2058.06273,0.00020273,2]
[389648648,1759767054295,-2058.06273,0.00020273,2]
[389648650,1759767054304,-151.0,0.00020273,2]
[389648651,1759767054313,-801.38,0.00020273,2]
[389648652,1759767054324,-2058.06273,0.00020273,2]
[389648653,1759767054334,-151.0,0.00020273,2]
[389648654,1759767054344,-151.0,0.00020273,2]
[389648655,1759767054354,-520.52,0.00020273,2]
[389648656,1759767054364,-566.39,0.00020273,2]
[389648657,1759767054373,-340.417045,0.00020273,2]
[389648659,1759767054382,-1020.43,0.00020273,2]
[389648660,1759767054392,-151.0,0.00020273,2]
[389648661,1759767054402,-151.0,0.00020273,2]
[389648662,1759767054412,-151.0,0.00020273,2]
[389648663,1759767054422,-534.37,0.00020273,2]
[389648664,1759767054432,-612.54,0.00020273,2]
[389648665,1759767054442,-500.0,0.00020273,2]
[389648666,1759767054451,-665.81,0.00020273,2]
[389648668,1759767054460,-500.0,0.00020273,2]
[389648669,1759767054469,-4890.47,0.00020273,2]
[389648670,1759767054479,-151.0,0.00020273,2]
[389648671,1759767054488,-151.0,0.00020273,2]
[389648672,1759767054498,-988.39,0.00020273,2]
[389648673,1759767054507,-3211.78,0.00020273,2]
[389648674,1759767054517,-151.0,0.00020273,2]
[389648675,1759767054526,-500.0,0.00020273,2]
[389648677,1759767054536,-151.0,0.00020273,2]
[389648678,1759767054545,-500.0,0.00020273,2]
[389648679,1759767054555,-500.0,0.00020273,2]
[389648680,1759767054565,-504.68,0.00020273,2]
[389648681,1759767054574,-281.317403,0.00020273,2]
[389648682,1759767054584,-1164.13,0.00020273,2]
[389648683,1759767054594,-151.0,0.00020273,2]
[389648685,1759767054604,-281.317403,0.00020273,2]
[389648686,1759767054614,-1461.14,0.00020273,2]
[389648687,1759767054624,-614.43,0.00020273,2]
[389648688,1759767054638,-281.317403,0.00020273,2]
[389648689,1759767054652,-151.0,0.00020273,2]
[389648690,1759767054668,-151.0,0.00020273,2]
[389648692,1759767054681,-281.317403,0.00020273,2]
[389648693,1759767054692,-158.576464,0.00020273,2]
[389648694,1759767054706,-500.0,0.00020273,2]
[389648695,1759767054719,-873.82,0.00020273,2]
[389648696,1759767054731,-500.0,0.00020273,2]
[389648697,1759767054745,-243.823277,0.00020273,2]
[389648699,1759767054758,-243.823277,0.00020273,2]
[389648700,1759767054770,-1756.41,0.00020273,2]
[389648701,1759767054784,-548.11,0.00020273,2]
[389648702,1759767054798,-243.823277,0.00020273,2]
[389648703,1759767054811,-500.0,0.00020273,2]
[389648704,1759767054824,-243.823277,0.00020273,2]
[389648706,1759767054837,-741.0,0.00020273,2]
[389648707,1759767054849,-500.0,0.00020273,2]
[389648708,1759767054862,-1292.37,0.00020273,2]
[389648709,1759767054876,-1057.32,0.00020273,2]
[389648710,1759767054890,-1192.5,0.00020273,2]
[389648712,1759767054901,-500.0,0.00020273,2]
[389648713,1759767054912,-2502.01,0.00020273,2]
[389648714,1759767054923,-500.0,0.00020273,2]
[389648715,1759767054936,-735.61,0.00020273,2]
[389648716,1759767054949,-500.0,0.00020273,2]
[389648717,1759767054963,-889.67,0.00020273,2]
[389648718,1759767054975,-500.0,0.00020273,2]
[389648720,1759767054987,-151.0,0.00020273,2]
[389648721,1759767055001,-4247.91,0.00020273,2]
[389648722,1759767055014,-1077.11,0.00020273,2]
[389648723,1759767055028,-10027.14,0.00020273,2]
[389648724,1759767055046,-3687.49,0.00020273,2]
[389648726,1759767055056,-151.0,0.00020273,2]
[389648727,1759767055067,-500.0,0.00020273,2]
[389648728,1759767055078,-151.0,0.00020273,2]
[389648729,1759767055092,-151.0,0.00020273,2]
[389648730,1759767055106,-228.346032,0.00020273,2]
[389648731,1759767055120,-743.19,0.00020273,2]
[389648732,1759767055132,-500.0,0.00020273,2]
[389648734,1759767055143,-228.346032,0.00020273,2]
[389648735,1759767055155,-1944.29,0.00020273,2]
[389648736,1759767055168,-559.02,0.00020273,2]
[389648737,1759767055180,-196.609406,0.00020273,2]
[389648738,1759767055191,-228.346032,0.00020273,2]
[389648739,1759767055203,-356.544805,0.00020273,2]
[389648740,1759767055214,-228.346032,0.00020273,2]
[389648742,1759767055226,-196.609406,0.00020273,2]
[389648743,1759767055238,-500.0,0.00020273,2]
[389648744,1759767055250,-356.544805,0.00020273,2]
[389648745,1759767055262,-196.609406,0.00020273,2]
[389648746,1759767055273,-356.544805,0.00020273,2]
[389648747,1759767055285,-196.609406,0.00020273,2]
[389648748,1759767055297,-697.83,0.00020273,2]
[389648749,1759767055309,-356.544805,0.00020273,2]
[389648750,1759767055321,-438.29441186,0.00020273,2]
[389648751,1759767055333,-151.0,0.00020273,2]
[389648753,1759767055347,-500.0,0.00020273,2]
[389648754,1759767055359,-580.0,0.00020273,2]
[389648755,1759767055370,-500.0,0.00020273,2]
[389648756,1759767055381,-619.74,0.00020273,2]
[389648757,1759767055393,-282.84,0.00020273,2]
[389648758,1759767055404,-500.0,0.00020273,2]
[389648759,1759767055416,-500.0,0.00020273,2]
[389648761,1759767055427,-860.18,0.00020273,2]
[389648762,1759767055439,-500.0,0.00020273,2]
[389648763,1759767055452,-500.0,0.00020273,2]
[389648764,1759767055463,-1426.97,0.00020273,2]
[389648765,1759767055475,-660.26,0.00020273,2]
[389648766,1759767055487,-1691.79,0.00020273,2]
[389648767,1759767055499,-151.0,0.00020273,2]
[389648769,1759767055510,-151.0,0.00020273,2]
[389648770,1759767055521,-151.0,0.00020273,2]
[389648771,1759767055532,-551.82,0.00020273,2]
[389648772,1759767055544,-500.0,0.00020273,2]
[389648773,1759767055555,-1454.51,0.00020273,2]
[389648774,1759767055567,-10078.61,0.00020273,2]
[389648775,1759767055580,-500.0,0.00020273,2]
[389648777,1759767055592,-151.0,0.00020273,2]
[389648778,1759767055603,-500.0,0.00020273,2]
[389648779,1759767055615,-151.0,0.00020273,2]